[Event "*** SCC Grand Prix: Titled Tuesday Blitz"]
[Site "Chess.com"]
[Date "2020.06.09"]
[Round "7"]
[White "vanyakuba"]
[Black "topotun"]
[Result "0-1"]
[WhiteElo "2453"]
[BlackElo "2616"]
[TimeControl "180+1"]
[EndTime "10:18:02 PDT"]
[Termination "topotun won on time"]

1. e4 {[%clk 0:02:59.7]} 1... c5 {[%clk 0:02:48.3]} 2. Nc3 {[%clk 0:02:59]} 2...
Nc6 {[%clk 0:02:28.8]} 3. f4 {[%clk 0:02:58.4]} 3... e6 {[%clk 0:02:28.2]} 4.
Nf3 {[%clk 0:02:58.4]} 4... d5 {[%clk 0:02:27.2]} 5. Bb5 {[%clk 0:02:58.5]} 5...
Ne7 {[%clk 0:02:27.5]} 6. Ne5 {[%clk 0:02:58]} 6... Bd7 {[%clk 0:02:27.3]} 7.
Nxd7 {[%clk 0:02:57.7]} 7... Qxd7 {[%clk 0:02:28.2]} 8. d3 {[%clk 0:02:57.2]}
8... a6 {[%clk 0:02:23.6]} 9. Bxc6 {[%clk 0:02:54.8]} 9... Nxc6 {[%clk
0:02:20.3]} 10. O-O {[%clk 0:02:54.2]} 10... d4 {[%clk 0:02:19.3]} 11. Ne2
{[%clk 0:02:48.7]} 11... f5 {[%clk 0:02:18.4]} 12. a4 {[%clk 0:02:18.5]} 12...
b6 {[%clk 0:02:14.1]} 13. Kh1 {[%clk 0:02:15.8]} 13... Be7 {[%clk 0:02:11.5]}
14. Ng3 {[%clk 0:02:13.3]} 14... g6 {[%clk 0:02:11.2]} 15. Bd2 {[%clk
0:02:12.1]} 15... O-O {[%clk 0:02:09.5]} 16. Qf3 {[%clk 0:02:08.9]} 16... b5
{[%clk 0:02:07.1]} 17. axb5 {[%clk 0:02:06.1]} 17... axb5 {[%clk 0:02:08]} 18.
exf5 {[%clk 0:01:20.4]} 18... exf5 {[%clk 0:02:06.1]} 19. Rfe1 {[%clk
0:01:19.4]} 19... Bf6 {[%clk 0:01:52.6]} 20. Kg1 {[%clk 0:00:55.2]} 20... Kf7
{[%clk 0:01:52.2]} 21. Nf1 {[%clk 0:00:54.4]} 21... c4 {[%clk 0:01:46.8]} 22. g3
{[%clk 0:00:38.6]} 22... c3 {[%clk 0:01:42.6]} 23. bxc3 {[%clk 0:00:36]} 23...
dxc3 {[%clk 0:01:43.5]} 24. Be3 {[%clk 0:00:36.4]} 24... b4 {[%clk 0:01:29.5]}
25. Bc5 {[%clk 0:00:33.1]} 25... Bd4+ {[%clk 0:01:15.7]} 26. Bxd4 {[%clk
0:00:32.5]} 26... Nxd4 {[%clk 0:01:16.6]} 27. Qg2 {[%clk 0:00:21.8]} 27... Rxa1
{[%clk 0:01:09]} 28. Rxa1 {[%clk 0:00:22.7]} 28... Re8 {[%clk 0:01:09.5]} 29.
Ra8 {[%clk 0:00:10.7]} 29... Re2 {[%clk 0:00:58.2]} 30. Qh3 {[%clk 0:00:02]}
30... h5 {[%clk 0:00:58.1]} 0-1

[Event "*** SCC Grand Prix: Titled Tuesday Blitz"]
[Site "Chess.com"]
[Date "2020.06.09"]
[Round "7"]
[White "Maghalashvili"]
[Black "FairChess_on_YouTube"]
[Result "1-0"]
[WhiteElo "2777"]
[BlackElo "3007"]
[TimeControl "180+1"]
[EndTime "10:18:05 PDT"]
[Termination "Maghalashvili won by resignation"]

1. Nf3 {[%clk 0:02:58.2]} 1... b5 {[%clk 0:02:59.4]} 2. e4 {[%clk 0:02:52.4]}
2... a6 {[%clk 0:02:59.8]} 3. d4 {[%clk 0:02:51]} 3... Bb7 {[%clk 0:02:59.7]} 4.
Bd3 {[%clk 0:02:50.8]} 4... e6 {[%clk 0:02:59.7]} 5. O-O {[%clk 0:02:50.7]} 5...
d5 {[%clk 0:02:59.9]} 6. e5 {[%clk 0:02:48.7]} 6... c5 {[%clk 0:02:59.2]} 7. c3
{[%clk 0:02:49.1]} 7... Nc6 {[%clk 0:02:59.6]} 8. a4 {[%clk 0:02:37.2]} 8... c4
{[%clk 0:02:57.1]} 9. axb5 {[%clk 0:02:30.6]} 9... axb5 {[%clk 0:02:57]} 10.
Rxa8 {[%clk 0:02:29.4]} 10... Qxa8 {[%clk 0:02:57.9]} 11. Bc2 {[%clk 0:02:28.3]}
11... b4 {[%clk 0:02:54.4]} 12. b3 {[%clk 0:02:24.2]} 12... Nge7 {[%clk
0:02:50.8]} 13. bxc4 {[%clk 0:02:14.1]} 13... dxc4 {[%clk 0:02:50.5]} 14. Nbd2
{[%clk 0:02:14.1]} 14... b3 {[%clk 0:02:27.8]} 15. Nxc4 {[%clk 0:02:03.9]} 15...
bxc2 {[%clk 0:02:27.9]} 16. Nd6+ {[%clk 0:02:03.3]} 16... Kd7 {[%clk 0:02:28.4]}
17. Qxc2 {[%clk 0:02:01.7]} 17... Nd8 {[%clk 0:02:24.3]} 18. Nxb7 {[%clk
0:01:52.9]} 18... Nxb7 {[%clk 0:02:17.5]} 19. c4 {[%clk 0:01:42.3]} 19... Nf5
{[%clk 0:02:11]} 20. Bb2 {[%clk 0:01:34.7]} 20... Nd8 {[%clk 0:01:57.5]} 21. Ra1
{[%clk 0:01:29.9]} 21... Qb7 {[%clk 0:01:57.8]} 22. Qa4+ {[%clk 0:01:13]} 22...
Qc6 {[%clk 0:01:50.7]} 23. Qa7+ {[%clk 0:01:11.5]} 23... Qb7 {[%clk 0:01:50.4]}
24. Qa4+ {[%clk 0:01:10.9]} 24... Qc6 {[%clk 0:01:50.3]} 25. Qa7+ {[%clk
0:01:08.5]} 25... Qb7 {[%clk 0:01:38.2]} 26. d5 {[%clk 0:01:04.5]} 26... Qxa7
{[%clk 0:01:17.7]} 27. Rxa7+ {[%clk 0:01:03.5]} 27... Kc8 {[%clk 0:01:18.2]} 28.
d6 {[%clk 0:00:57.6]} 28... Kb8 {[%clk 0:00:50.3]} 29. Rd7 {[%clk 0:00:55.1]}
29... Kc8 {[%clk 0:00:34.8]} 30. Rc7+ {[%clk 0:00:54.3]} 30... Kb8 {[%clk
0:00:35.3]} 31. c5 {[%clk 0:00:54.6]} 31... Nb7 {[%clk 0:00:33.4]} 32. c6 {[%clk
0:00:44.2]} 32... Na5 {[%clk 0:00:30.2]} 33. Bc3 {[%clk 0:00:40.9]} 33... Nb3
{[%clk 0:00:17.5]} 34. Rb7+ {[%clk 0:00:40]} 1-0

[Event "*** SCC Grand Prix: Titled Tuesday Blitz"]
[Site "Chess.com"]
[Date "2020.06.09"]
[Round "7"]
[White "Matibar"]
[Black "TregubovP"]
[Result "0-1"]
[WhiteElo "2703"]
[BlackElo "2575"]
[TimeControl "180+1"]
[EndTime "10:18:06 PDT"]
[Termination "TregubovP won by resignation"]

1. e4 {[%clk 0:03:00.9]} 1... e6 {[%clk 0:02:59.5]} 2. d4 {[%clk 0:02:59.8]}
2... d5 {[%clk 0:02:59.9]} 3. Nc3 {[%clk 0:03:00.1]} 3... Bb4 {[%clk 0:02:59.2]}
4. e5 {[%clk 0:02:58.1]} 4... c5 {[%clk 0:02:59.6]} 5. a3 {[%clk 0:02:57.7]}
5... Ba5 {[%clk 0:03:00.2]} 6. Bd2 {[%clk 0:02:52.6]} 6... Nc6 {[%clk
0:02:56.8]} 7. Nb5 {[%clk 0:02:45.9]} 7... Nxd4 {[%clk 0:02:44.1]} 8. Nxd4
{[%clk 0:02:40.9]} 8... cxd4 {[%clk 0:02:41.9]} 9. Nf3 {[%clk 0:02:38.5]} 9...
Ne7 {[%clk 0:02:37.7]} 10. Bxa5 {[%clk 0:02:21.5]} 10... Qxa5+ {[%clk
0:02:37.1]} 11. b4 {[%clk 0:02:21.9]} 11... Qc7 {[%clk 0:02:35]} 12. Qxd4 {[%clk
0:02:22.4]} 12... O-O {[%clk 0:02:31.9]} 13. Bd3 {[%clk 0:02:21.1]} 13... Nc6
{[%clk 0:02:21]} 14. Qh4 {[%clk 0:01:58.5]} 14... h6 {[%clk 0:02:17.8]} 15. Qh5
{[%clk 0:01:49.8]} 15... f5 {[%clk 0:01:57.5]} 16. exf6 {[%clk 0:01:31.1]} 16...
Rxf6 {[%clk 0:01:57.4]} 17. O-O {[%clk 0:01:31.6]} 17... Bd7 {[%clk 0:01:47.9]}
18. b5 {[%clk 0:01:08.3]} 18... Nd8 {[%clk 0:01:20.5]} 19. Ne5 {[%clk
0:00:59.7]} 19... Nf7 {[%clk 0:00:59.2]} 20. Ng4 {[%clk 0:00:53.9]} 20... Rf4
{[%clk 0:00:59.3]} 21. g3 {[%clk 0:00:49.1]} 21... Ra4 {[%clk 0:00:46.1]} 22.
Qg6 {[%clk 0:00:42.9]} 22... Kf8 {[%clk 0:00:45.3]} 23. f4 {[%clk 0:00:38.1]}
23... Bxb5 {[%clk 0:00:31.2]} 24. f5 {[%clk 0:00:32.2]} 24... Bxd3 {[%clk
0:00:22.8]} 25. cxd3 {[%clk 0:00:31.3]} 25... exf5 {[%clk 0:00:20.2]} 26. Rxf5
{[%clk 0:00:29.8]} 26... Qb6+ {[%clk 0:00:19]} 27. Kh1 {[%clk 0:00:27.5]} 27...
Qxg6 {[%clk 0:00:17.9]} 0-1

[Event "*** SCC Grand Prix: Titled Tuesday Blitz"]
[Site "Chess.com"]
[Date "2020.06.09"]
[Round "7"]
[White "rakshi2005"]
[Black "Irishchessman16"]
[Result "0-1"]
[WhiteElo "2325"]
[BlackElo "2468"]
[TimeControl "180+1"]
[EndTime "10:18:06 PDT"]
[Termination "Irishchessman16 won by resignation"]

1. e4 {[%clk 0:03:00.9]} 1... c5 {[%clk 0:02:59]} 2. Nf3 {[%clk 0:02:59.8]} 2...
Nc6 {[%clk 0:02:59.2]} 3. d4 {[%clk 0:03:00.7]} 3... cxd4 {[%clk 0:02:59]} 4.
Nxd4 {[%clk 0:02:59.7]} 4... Nf6 {[%clk 0:02:59.1]} 5. Nc3 {[%clk 0:02:59.3]}
5... e5 {[%clk 0:02:59.4]} 6. Nf3 {[%clk 0:02:52]} 6... Bb4 {[%clk 0:02:57.7]}
7. Bd3 {[%clk 0:02:50.4]} 7... d5 {[%clk 0:02:56.8]} 8. O-O {[%clk 0:02:31.5]}
8... Bxc3 {[%clk 0:02:51.7]} 9. exd5 {[%clk 0:02:27.7]} 9... e4 {[%clk
0:02:35.1]} 10. Bb5 {[%clk 0:02:11.9]} 10... Nxd5 {[%clk 0:02:08.8]} 11. bxc3
{[%clk 0:02:10.4]} 11... exf3 {[%clk 0:02:06.8]} 12. c4 {[%clk 0:02:01.1]} 12...
Nc3 {[%clk 0:01:59.6]} 13. Qe1+ {[%clk 0:01:53.2]} 13... Ne2+ {[%clk 0:01:58.8]}
14. Kh1 {[%clk 0:01:52.2]} 14... O-O {[%clk 0:01:57.4]} 15. gxf3 {[%clk
0:01:51.5]} 15... Ncd4 {[%clk 0:01:49.8]} 16. Rg1 {[%clk 0:01:49.1]} 16... Re8
{[%clk 0:01:41.2]} 17. Bb2 {[%clk 0:01:46.1]} 17... Nxg1 {[%clk 0:01:31.2]} 18.
Qxg1 {[%clk 0:01:44.3]} 18... Ne6 {[%clk 0:01:28.4]} 19. Re1 {[%clk 0:01:41]}
19... g6 {[%clk 0:01:16]} 20. Qg3 {[%clk 0:01:38.4]} 20... Bd7 {[%clk
0:01:13.9]} 21. Rd1 {[%clk 0:01:10.9]} 21... Nc5 {[%clk 0:00:51.2]} 22. Bxd7
{[%clk 0:00:37.5]} 22... Nxd7 {[%clk 0:00:50.5]} 23. Qg4 {[%clk 0:00:36.3]}
23... f5 {[%clk 0:00:44]} 24. Qd4 {[%clk 0:00:31.4]} 24... Nf6 {[%clk
0:00:43.7]} 25. Qxd8 {[%clk 0:00:17]} 25... Raxd8 {[%clk 0:00:42.8]} 26. Rxd8
{[%clk 0:00:17.9]} 26... Rxd8 {[%clk 0:00:42.7]} 27. Bxf6 {[%clk 0:00:18.8]}
27... Rd2 {[%clk 0:00:43.1]} 28. Kg2 {[%clk 0:00:16.9]} 28... Rxc2 {[%clk
0:00:42.9]} 29. a4 {[%clk 0:00:17.8]} 29... Rxc4 {[%clk 0:00:42.9]} 30. a5
{[%clk 0:00:18.4]} 30... Rc5 {[%clk 0:00:42.9]} 31. Bd4 {[%clk 0:00:18]} 31...
Rxa5 {[%clk 0:00:43]} 0-1

[Event "*** SCC Grand Prix: Titled Tuesday Blitz"]
[Site "Chess.com"]
[Date "2020.06.09"]
[Round "7"]
[White "FrogMist"]
[Black "UCantHandleDenker"]
[Result "0-1"]
[WhiteElo "2376"]
[BlackElo "2521"]
[TimeControl "180+1"]
[EndTime "10:18:08 PDT"]
[Termination "UCantHandleDenker won by resignation"]

1. e4 {[%clk 0:03:00.9]} 1... d6 {[%clk 0:02:56.6]} 2. d4 {[%clk 0:03:00.8]}
2... Nf6 {[%clk 0:02:56.2]} 3. Nc3 {[%clk 0:02:59.8]} 3... g6 {[%clk 0:02:56.2]}
4. Nf3 {[%clk 0:02:58.7]} 4... Bg7 {[%clk 0:02:55.7]} 5. Be3 {[%clk 0:02:59.3]}
5... O-O {[%clk 0:02:55]} 6. Qd2 {[%clk 0:02:59.5]} 6... c6 {[%clk 0:02:55.3]}
7. Bh6 {[%clk 0:02:57.7]} 7... b5 {[%clk 0:02:54.8]} 8. Bd3 {[%clk 0:02:55.4]}
8... Nbd7 {[%clk 0:02:53.8]} 9. h4 {[%clk 0:02:50.6]} 9... e5 {[%clk 0:02:51.6]}
10. dxe5 {[%clk 0:02:49.7]} 10... dxe5 {[%clk 0:02:51.2]} 11. O-O-O {[%clk
0:02:48.5]} 11... Qe7 {[%clk 0:02:50.8]} 12. Qg5 {[%clk 0:02:40.7]} 12... Bxh6
{[%clk 0:02:43.8]} 13. Qxh6 {[%clk 0:02:39.8]} 13... Ng4 {[%clk 0:02:43.4]} 14.
Qd2 {[%clk 0:02:37.9]} 14... h5 {[%clk 0:02:42.7]} 15. Ng5 {[%clk 0:02:35.9]}
15... Nc5 {[%clk 0:02:26.7]} 16. Bf1 {[%clk 0:02:21.5]} 16... b4 {[%clk
0:02:18.2]} 17. Nb1 {[%clk 0:02:16.6]} 17... Be6 {[%clk 0:02:14.2]} 18. f3
{[%clk 0:02:15.4]} 18... Rad8 {[%clk 0:02:10]} 19. Qe1 {[%clk 0:01:53.8]} 19...
Rxd1+ {[%clk 0:02:04.2]} 20. Kxd1 {[%clk 0:01:54.7]} 20... Rd8+ {[%clk
0:01:53.5]} 21. Kc1 {[%clk 0:01:51.4]} 21... Nf6 {[%clk 0:01:49.2]} 22. b3
{[%clk 0:01:50.8]} 22... Qd6 {[%clk 0:01:43.2]} 23. Qd2 {[%clk 0:01:35.8]} 23...
a5 {[%clk 0:01:32.3]} 24. Qxd6 {[%clk 0:01:33.2]} 24... Rxd6 {[%clk 0:01:31.8]}
25. Nd2 {[%clk 0:01:33.8]} 25... a4 {[%clk 0:01:17.4]} 26. Bc4 {[%clk
0:01:26.7]} 26... Nfd7 {[%clk 0:00:49.2]} 27. Bxe6 {[%clk 0:01:11.1]} 27... Nxe6
{[%clk 0:00:48]} 28. Nc4 {[%clk 0:01:09.4]} 28... Rd4 {[%clk 0:00:48]} 29. Nxe6
{[%clk 0:01:09]} 29... fxe6 {[%clk 0:00:47.7]} 30. Rd1 {[%clk 0:01:09.3]} 30...
axb3 {[%clk 0:00:43.6]} 31. cxb3 {[%clk 0:01:06.8]} 31... c5 {[%clk 0:00:43.3]}
32. Kc2 {[%clk 0:01:02.2]} 32... Kf8 {[%clk 0:00:42.2]} 33. Ra1 {[%clk
0:01:01.3]} 33... Kf7 {[%clk 0:00:30]} 34. a3 {[%clk 0:01:01.5]} 34... bxa3
{[%clk 0:00:30.8]} 35. Rxa3 {[%clk 0:01:02.2]} 35... Kf6 {[%clk 0:00:31.3]} 36.
Ra7 {[%clk 0:00:55.4]} 36... Nb8 {[%clk 0:00:30.3]} 37. Rc7 {[%clk 0:00:51.8]}
37... Na6 {[%clk 0:00:30.4]} 38. Rc8 {[%clk 0:00:47.6]} 38... Nb4+ {[%clk
0:00:29.3]} 39. Kc3 {[%clk 0:00:47.7]} 39... Rd3+ {[%clk 0:00:28.7]} 40. Kb2
{[%clk 0:00:47.9]} 40... Rd7 {[%clk 0:00:25.7]} 41. Rxc5 {[%clk 0:00:46.8]}
41... Nd3+ {[%clk 0:00:24.4]} 0-1

[Event "*** SCC Grand Prix: Titled Tuesday Blitz"]
[Site "Chess.com"]
[Date "2020.06.09"]
[Round "7"]
[White "lucachess49"]
[Black "RitvarsReimanis"]
[Result "1-0"]
[WhiteElo "2371"]
[BlackElo "2472"]
[TimeControl "180+1"]
[EndTime "10:18:08 PDT"]
[Termination "lucachess49 won by resignation"]

1. d4 {[%clk 0:03:00.9]} 1... Nf6 {[%clk 0:02:57.4]} 2. c4 {[%clk 0:03:01]} 2...
e6 {[%clk 0:02:57.7]} 3. Nc3 {[%clk 0:03:00.3]} 3... d5 {[%clk 0:02:58]} 4. cxd5
{[%clk 0:03:00]} 4... exd5 {[%clk 0:02:58.9]} 5. Bg5 {[%clk 0:02:58.6]} 5... Be7
{[%clk 0:02:57.5]} 6. e3 {[%clk 0:02:57.6]} 6... c6 {[%clk 0:02:58]} 7. Bd3
{[%clk 0:02:57]} 7... Nbd7 {[%clk 0:02:58.4]} 8. Nf3 {[%clk 0:02:52.5]} 8... O-O
{[%clk 0:02:58.8]} 9. O-O {[%clk 0:02:51.2]} 9... Re8 {[%clk 0:02:59.3]} 10. h3
{[%clk 0:02:48.6]} 10... Nf8 {[%clk 0:02:59.4]} 11. Qc2 {[%clk 0:02:46.1]} 11...
Ng6 {[%clk 0:02:59.4]} 12. Bxf6 {[%clk 0:02:37.7]} 12... Bxf6 {[%clk 0:02:59.4]}
13. b4 {[%clk 0:02:38.3]} 13... a6 {[%clk 0:02:57.5]} 14. a4 {[%clk 0:02:37.7]}
14... Be6 {[%clk 0:02:30.6]} 15. b5 {[%clk 0:02:33.7]} 15... cxb5 {[%clk
0:02:26.4]} 16. axb5 {[%clk 0:02:33.3]} 16... a5 {[%clk 0:02:26.6]} 17. b6
{[%clk 0:02:20.7]} 17... Qxb6 {[%clk 0:02:22.5]} 18. Rfb1 {[%clk 0:02:20.1]}
18... Qd6 {[%clk 0:01:47.1]} 19. Rxb7 {[%clk 0:02:08.3]} 19... Rec8 {[%clk
0:01:43.9]} 20. Qd2 {[%clk 0:02:05.1]} 20... Qc6 {[%clk 0:01:12.6]} 21. Rb3
{[%clk 0:02:04.1]} 21... a4 {[%clk 0:01:11.3]} 22. Rba3 {[%clk 0:02:03.7]} 22...
Be7 {[%clk 0:01:09.6]} 23. Rxa4 {[%clk 0:01:44.5]} 23... Rxa4 {[%clk 0:00:44.6]}
24. Nxa4 {[%clk 0:01:44]} 24... Ra8 {[%clk 0:00:44.1]} 25. Qc2 {[%clk
0:01:37.5]} 25... Bd7 {[%clk 0:00:37.1]} 26. Qxc6 {[%clk 0:01:28.5]} 26... Bxc6
{[%clk 0:00:37.2]} 27. Bc2 {[%clk 0:01:29]} 27... f6 {[%clk 0:00:29.3]} 28. Ra2
{[%clk 0:01:28.8]} 28... Bb4 {[%clk 0:00:23.1]} 29. Bb3 {[%clk 0:01:22.9]} 29...
Kf8 {[%clk 0:00:20.1]} 30. Nb6 {[%clk 0:01:18.8]} 30... Rxa2 {[%clk 0:00:13.3]}
31. Bxa2 {[%clk 0:01:18.7]} 31... Ne7 {[%clk 0:00:14.2]} 32. Bb3 {[%clk
0:01:11.2]} 32... Ba5 {[%clk 0:00:13.5]} 33. Na4 {[%clk 0:01:10.7]} 33... Nc8
{[%clk 0:00:11.8]} 34. Nc5 {[%clk 0:01:10.3]} 34... Bb6 {[%clk 0:00:08.6]} 35.
Ne1 {[%clk 0:01:05.5]} 35... Nd6 {[%clk 0:00:07]} 36. Ned3 {[%clk 0:01:04.8]}
36... Ke7 {[%clk 0:00:06.1]} 37. Nb4 {[%clk 0:01:02.7]} 37... Ba8 {[%clk
0:00:01.9]} 38. Bxd5 {[%clk 0:01:00.5]} 38... Bxc5 {[%clk 0:00:01.1]} 1-0

[Event "*** SCC Grand Prix: Titled Tuesday Blitz"]
[Site "Chess.com"]
[Date "2020.06.09"]
[Round "7"]
[White "NewBornNow"]
[Black "PlayChessSimple"]
[Result "1-0"]
[WhiteElo "2709"]
[BlackElo "2508"]
[TimeControl "180+1"]
[EndTime "10:18:11 PDT"]
[Termination "NewBornNow won on time"]

1. e4 {[%clk 0:03:00.9]} 1... e6 {[%clk 0:03:00.2]} 2. d4 {[%clk 0:03:00.5]}
2... d5 {[%clk 0:03:00.3]} 3. Nc3 {[%clk 0:03:00.6]} 3... Nf6 {[%clk 0:03:00.1]}
4. e5 {[%clk 0:02:59.9]} 4... Nfd7 {[%clk 0:03:00.4]} 5. f4 {[%clk 0:02:59.7]}
5... c5 {[%clk 0:03:00.8]} 6. Nf3 {[%clk 0:02:59.6]} 6... Nc6 {[%clk 0:03:01.3]}
7. Ne2 {[%clk 0:02:59.4]} 7... Qb6 {[%clk 0:02:55.2]} 8. c3 {[%clk 0:02:59.2]}
8... f6 {[%clk 0:02:55.5]} 9. a3 {[%clk 0:02:57.2]} 9... a5 {[%clk 0:02:52.3]}
10. Ng3 {[%clk 0:02:55.7]} 10... a4 {[%clk 0:02:46.1]} 11. Bd3 {[%clk
0:02:54.9]} 11... f5 {[%clk 0:02:42.4]} 12. Ne2 {[%clk 0:02:51.3]} 12... Na5
{[%clk 0:02:21.7]} 13. h3 {[%clk 0:02:44.1]} 13... Nb3 {[%clk 0:02:19.7]} 14.
Rb1 {[%clk 0:02:43.7]} 14... Nb8 {[%clk 0:02:03.9]} 15. Be3 {[%clk 0:02:40.4]}
15... Nc6 {[%clk 0:02:03]} 16. g4 {[%clk 0:02:38.7]} 16... Nca5 {[%clk
0:01:45.9]} 17. gxf5 {[%clk 0:02:34.9]} 17... exf5 {[%clk 0:01:46]} 18. h4
{[%clk 0:02:33.7]} 18... Be6 {[%clk 0:01:34.6]} 19. h5 {[%clk 0:02:33.2]} 19...
O-O-O {[%clk 0:01:33.3]} 20. Qc2 {[%clk 0:02:29]} 20... Nc4 {[%clk 0:01:27.9]}
21. Bf2 {[%clk 0:02:26.2]} 21... Kb8 {[%clk 0:01:03.2]} 22. Bxf5 {[%clk
0:02:23.1]} 22... Bxf5 {[%clk 0:01:03.5]} 23. Qxf5 {[%clk 0:02:21.9]} 23... cxd4
{[%clk 0:00:58.1]} 24. cxd4 {[%clk 0:02:20.8]} 24... Qa5+ {[%clk 0:00:56.5]} 25.
Kf1 {[%clk 0:02:19.5]} 25... Nbd2+ {[%clk 0:00:52.8]} 26. Nxd2 {[%clk
0:02:18.3]} 26... Nxd2+ {[%clk 0:00:53.1]} 27. Kg2 {[%clk 0:02:17.5]} 27... Nxb1
{[%clk 0:00:50.4]} 28. Qxb1 {[%clk 0:02:16.9]} 28... Be7 {[%clk 0:00:41.8]} 29.
Nc3 {[%clk 0:02:16.6]} 29... Bxa3 {[%clk 0:00:32.8]} 30. bxa3 {[%clk 0:02:03.5]}
30... Qxc3 {[%clk 0:00:31.9]} 31. Rh3 {[%clk 0:01:57.4]} 31... Qd2 {[%clk
0:00:27.2]} 32. f5 {[%clk 0:01:52.1]} 32... Qe2 {[%clk 0:00:22.9]} 33. Rg3
{[%clk 0:01:35]} 33... Rd7 {[%clk 0:00:13.8]} 34. e6 {[%clk 0:01:29.4]} 34...
Rc7 {[%clk 0:00:14]} 35. Re3 {[%clk 0:01:29.1]} 35... Qxh5 {[%clk 0:00:10.2]}
36. Bg3 {[%clk 0:01:27.6]} 36... Rc8 {[%clk 0:00:10.1]} 37. e7 {[%clk 0:01:25]}
37... Ka8 {[%clk 0:00:07.3]} 38. Bxc7 {[%clk 0:01:22.7]} 38... Qg5+ {[%clk
0:00:07.7]} 39. Kf2 {[%clk 0:01:15.8]} 39... Qh4+ {[%clk 0:00:05.9]} 40. Bg3
{[%clk 0:01:13.3]} 40... Qxd4 {[%clk 0:00:04.6]} 41. Kf3 {[%clk 0:01:05.8]} 1-0

[Event "*** SCC Grand Prix: Titled Tuesday Blitz"]
[Site "Chess.com"]
[Date "2020.06.09"]
[Round "7"]
[White "fischercapa"]
[Black "FMOlexandrProhorov"]
[Result "1-0"]
[WhiteElo "2356"]
[BlackElo "2079"]
[TimeControl "180+1"]
[EndTime "10:18:13 PDT"]
[Termination "fischercapa won on time"]

1. e4 {[%clk 0:03:00.8]} 1... c5 {[%clk 0:02:57.2]} 2. Nf3 {[%clk 0:02:56.5]}
2... e6 {[%clk 0:02:56.9]} 3. d4 {[%clk 0:02:54.5]} 3... cxd4 {[%clk 0:02:57.4]}
4. Nxd4 {[%clk 0:02:54.8]} 4... Qb6 {[%clk 0:02:58.3]} 5. Nb3 {[%clk 0:02:54.9]}
5... Nf6 {[%clk 0:02:56.7]} 6. Nc3 {[%clk 0:02:52]} 6... Bb4 {[%clk 0:02:56.3]}
7. Bd3 {[%clk 0:02:52.3]} 7... d5 {[%clk 0:02:55.8]} 8. exd5 {[%clk 0:02:52.6]}
8... Nxd5 {[%clk 0:02:53.6]} 9. Bd2 {[%clk 0:02:48.9]} 9... Nxc3 {[%clk
0:02:52.1]} 10. bxc3 {[%clk 0:02:47.6]} 10... Be7 {[%clk 0:02:52.7]} 11. Qh5
{[%clk 0:02:43]} 11... g6 {[%clk 0:02:38.8]} 12. Qe5 {[%clk 0:02:36.2]} 12...
O-O {[%clk 0:02:32.9]} 13. Bh6 {[%clk 0:02:27.1]} 13... f6 {[%clk 0:02:32.9]}
14. Qg3 {[%clk 0:02:27]} 14... Bd6 {[%clk 0:01:33.6]} 15. f4 {[%clk 0:02:26.6]}
15... g5 {[%clk 0:01:17.7]} 16. Bxf8 {[%clk 0:02:23.9]} 16... Kxf8 {[%clk
0:01:14.6]} 17. Qh3 {[%clk 0:02:18]} 17... Bxf4 {[%clk 0:00:52.6]} 18. Qxh7
{[%clk 0:01:47.6]} 18... Qc7 {[%clk 0:00:16.3]} 19. Qh8+ {[%clk 0:01:09.2]}
19... Ke7 {[%clk 0:00:15.4]} 20. O-O {[%clk 0:01:07]} 20... Nd7 {[%clk
0:00:14.7]} 21. Rae1 {[%clk 0:00:57.7]} 21... Nf8 {[%clk 0:00:13.1]} 22. Nd4
{[%clk 0:00:51.6]} 22... Qxc3 {[%clk 0:00:05.6]} 23. Nf5+ {[%clk 0:00:36.9]}
23... Ke8 {[%clk 0:00:05.1]} 24. Ng7+ {[%clk 0:00:36.1]} 24... Ke7 {[%clk
0:00:04]} 25. Nf5+ {[%clk 0:00:36.7]} 25... Ke8 {[%clk 0:00:04.3]} 26. Qh5+
{[%clk 0:00:37.3]} 26... Kd8 {[%clk 0:00:01.2]} 27. Qf7 {[%clk 0:00:35.5]} 1-0

[Event "*** SCC Grand Prix: Titled Tuesday Blitz"]
[Site "Chess.com"]
[Date "2020.06.09"]
[Round "7"]
[White "Alopekos"]
[Black "BaMBoMaTTo"]
[Result "0-1"]
[WhiteElo "2493"]
[BlackElo "2644"]
[TimeControl "180+1"]
[EndTime "10:18:16 PDT"]
[Termination "BaMBoMaTTo won on time"]

1. e4 {[%clk 0:03:00.9]} 1... c5 {[%clk 0:02:59.4]} 2. Nc3 {[%clk 0:03:00.7]}
2... a6 {[%clk 0:02:59]} 3. Nf3 {[%clk 0:03:00.1]} 3... d6 {[%clk 0:02:57.8]} 4.
d4 {[%clk 0:03:00.5]} 4... cxd4 {[%clk 0:02:58.7]} 5. Nxd4 {[%clk 0:03:01.4]}
5... Nf6 {[%clk 0:02:58.2]} 6. Be3 {[%clk 0:03:01.5]} 6... Ng4 {[%clk
0:02:57.7]} 7. Bg5 {[%clk 0:03:01.1]} 7... h6 {[%clk 0:02:55.8]} 8. Bc1 {[%clk
0:03:01.6]} 8... Nf6 {[%clk 0:02:52.4]} 9. f3 {[%clk 0:02:49.5]} 9... e5 {[%clk
0:02:48.8]} 10. Nb3 {[%clk 0:02:49.6]} 10... Be6 {[%clk 0:02:49.2]} 11. Be3
{[%clk 0:02:49.5]} 11... Be7 {[%clk 0:02:49.4]} 12. Qd2 {[%clk 0:02:46.8]} 12...
Nbd7 {[%clk 0:02:49.8]} 13. O-O-O {[%clk 0:02:46.9]} 13... b5 {[%clk 0:02:50.1]}
14. Kb1 {[%clk 0:02:43.6]} 14... b4 {[%clk 0:02:48.2]} 15. Nd5 {[%clk 0:01:58]}
15... Bxd5 {[%clk 0:02:48.3]} 16. exd5 {[%clk 0:01:58.9]} 16... Nb6 {[%clk
0:02:48.8]} 17. Na5 {[%clk 0:01:58.3]} 17... Nbxd5 {[%clk 0:02:45.9]} 18. Nc6
{[%clk 0:01:57.8]} 18... Qc7 {[%clk 0:02:46.2]} 19. Nxe7 {[%clk 0:01:57.4]}
19... Kxe7 {[%clk 0:02:46.1]} 20. Bf2 {[%clk 0:01:51.7]} 20... Rhc8 {[%clk
0:02:40.6]} 21. Bd3 {[%clk 0:01:44.8]} 21... Kf8 {[%clk 0:02:36.9]} 22. Ka1
{[%clk 0:01:18.1]} 22... a5 {[%clk 0:02:31.5]} 23. Bf5 {[%clk 0:01:08.3]} 23...
Rcb8 {[%clk 0:02:31.6]} 24. Bh4 {[%clk 0:01:01.4]} 24... Ra6 {[%clk 0:02:14.9]}
25. Be4 {[%clk 0:00:29.9]} 25... Nxe4 {[%clk 0:02:05.1]} 26. fxe4 {[%clk
0:00:30.8]} 26... Nf4 {[%clk 0:02:05.4]} 27. Rhf1 {[%clk 0:00:29.9]} 27... Rc8
{[%clk 0:01:58.8]} 28. Rf2 {[%clk 0:00:28.6]} 28... Rc6 {[%clk 0:01:58.3]} 29.
Kb1 {[%clk 0:00:28.6]} 29... Kg8 {[%clk 0:01:57.3]} 30. Rdf1 {[%clk 0:00:21.8]}
30... f6 {[%clk 0:01:43.7]} 31. g3 {[%clk 0:00:16.7]} 31... Ne6 {[%clk
0:01:34.5]} 32. Bxf6 {[%clk 0:00:16.7]} 32... Nd4 {[%clk 0:01:34.2]} 33. Rc1
{[%clk 0:00:05.3]} 33... Rf8 {[%clk 0:01:21.7]} 34. Bh4 {[%clk 0:00:03.8]} 34...
Rxf2 {[%clk 0:01:22.6]} 35. Qxf2 {[%clk 0:00:04.6]} 35... g5 {[%clk 0:01:18.6]}
36. Rf1 {[%clk 0:00:04.4]} 36... Qg7 {[%clk 0:01:14.2]} 37. Bxg5 {[%clk
0:00:03.2]} 37... hxg5 {[%clk 0:01:14.4]} 38. Rc1 {[%clk 0:00:01.5]} 38... Qg6
{[%clk 0:01:06.7]} 0-1